[Event "Manhem Chess Week-Elo 2019"]
[Site "Moelnlycke"]
[Date "2019.08.11"]
[Round "2.5"]
[White "Degerfeldt, Sven"]
[Black "Berg, Roy"]
[Result "1-0"]
[ECO "D10"]
[WhiteElo "1918"]
[BlackElo "1913"]
[Annotator "NA"]
[PlyCount "129"]
[EventDate "2019.08.10"]
[EventType "tourn"]
[EventCountry "SWE"]
[SourceTitle "playchess.com"]
[Source "ChessBase"]
[SourceQuality "1"]
[TimeControl "40/5400+30:1800+30"]

1. d4 {[%emt 0:00:00]} d5 {[%emt 0:00:00]} 2. c4 {[%emt 0:01:11]} c6 {[%emt 0:00:00]} 3. cxd5 {[%emt 0:00:14]} cxd5 {[%emt 0:00:02]} 4. Nc3 {[%emt 0:00:07]} Nf6 {[%emt 0:00:37]} 5. Bf4 {[%emt 0:00:12]} Nc6 {[%emt 0:00:20]} 6. e3 {[%emt 0:00:14]} Ne4 {[%emt 0:05:09]} 7. Nxe4 {[%emt 0:04:44]} dxe4 {[%emt 0:00:13]} 8. a3 {[%emt 0:02:56]} e6 {[%emt 0:06:49]} 9. Ne2 {[%emt 0:01:13]} Bd6 {[%emt 0:00:54]} 10. Bxd6 {[%emt 0:00:51]} Qxd6 {[%emt 0:00:08]} 11. Nc3 {[%emt 0:00:14]} f5 {[%emt 0:04:41]} 12. Qh5+ {[%emt 0:08:42]} g6 {[%emt 0:03:32]} 13. Qh6 {[%emt 0:00:25]} a6 {[%emt 0:08:32]} 14. Rd1 {[%emt 0:04:05]} Qf8 {[%emt 0:03:26]} 15. Qf4 {[%emt 0:00:51]} Qf6 {[%emt 0:05:09]} 16. Be2 {[%emt 0:10:23]} O-O {[%emt 0:02:09]} 17. h4 {[%emt 0:00:14]} e5 {[%emt 0:17:52]} 18. dxe5 {[%emt 0:02:48]} Qxe5 {[%emt 0:01:14]} 19. g3 {[%emt 0:11:59]} Be6 {[%emt 0:04:38]} 20. Rd6 {[%emt 0:05:44]} Qxf4 {[%emt 0:08:30]} 21. gxf4 {[%emt 0:00:14]} Kf7 {[%emt 0:00:29]} 22. h5 {[%emt 0:03:10]} Ke7 {[%emt 0:00:15]} 23. Rd2 {[%emt 0:00:48]} Rad8 {[%emt 0:08:13]} 24. hxg6 {[%emt 0:02:54]} hxg6 {[%emt 0:02:20]} 25. Rxd8 {[%emt 0:01:33]} Nxd8 {[%emt 0:04:40]} 26. f3 {[%emt 0:01:26]} exf3 {[%emt 0:02:57]} 27. Bxf3 {[%emt 0:00:09]} Kf6 {[%emt 0:01:19]} 28. Kf2 {[%emt 0:06:22]} Rf7 {[%emt 0:02:27]} 29. Ne2 {[%emt 0:15:32]} Nc6 {[%emt 0:01:42]} 30. Bxc6 {[%emt 0:00:52]} bxc6 {[%emt 0:00:03]} 31. Rc1 {[%emt 0:00:52]} Bd5 {[%emt 0:01:14]} 32. Nd4 {[%emt 0:04:12]} a5 {[%emt 0:01:41]} 33. Nf3 {[%emt 0:01:18]} Rb7 {[%emt 0:00:22]} 34. Rc2 {[%emt 0:00:47]} Rh7 {[%emt 0:00:47]} 35. Kg3 {[%emt 0:06:28]} Rb7 {[%emt 0:00:39]} 36. Ne5 {[%emt 0:01:41]} Rc7 {[%emt 0:02:09]} 37. Rc5 {[%emt 0:00:55]} Rb7 {[%emt 0:00:50]} 38. Nxc6 {[%emt 0:00:28]} Be4 {[%emt 0:00:47]} 39. b4 {[%emt 0:01:08]} axb4 {[%emt 0:00:21]} 40. axb4 {[%emt 0:00:09]} Rd7 {[%emt 0:00:26]} 41. Nd4 {[%emt 0:30:22]} Ra7 {[%emt 0:30:29]} 42. Ra5 {[%emt 0:01:23]} Rxa5 {[%emt 0:00:00]} 43. bxa5 {[%emt 0:00:00]} g5 {[%emt 0:00:00]} 44. fxg5+ {[%emt 0:00:00]} Kxg5 {[%emt 0:00:00]} 45. a6 {[%emt 0:00:00]} Bd5 {[%emt 0:00:00]} 46. a7 {[%emt 0:00:00]} Kf6 {[%emt 0:00:00]} 47. Nb5 {[%emt 0:00:00]} Ke5 {[%emt 0:00:00]} 48. Nc7 {[%emt 0:00:00]} Bb7 {[%emt 0:00:00]} 49. Na6 {[%emt 0:00:00]} Ba8 {[%emt 0:00:00]} 50. Nc5 {[%emt 0:00:00]} Bc6 {[%emt 0:00:00]} 51. Kf2 {[%emt 0:00:00]} Ba8 {[%emt 0:00:00]} 52. Ke2 {[%emt 0:00:00]} Kd5 {[%emt 0:00:00]} 53. Nb3 {[%emt 0:00:00]} Ke4 {[%emt 0:00:00]} 54. Nd2+ {[%emt 0:00:00]} Ke5 {[%emt 0:00:00]} 55. Kd3 {[%emt 0:00:00]} Kd5 {[%emt 0:00:00]} 56. Nc4 {[%emt 0:00:00]} Bb7 {[%emt 0:00:00]} 57. Nb6+ {[%emt 0:02:08]} Ke5 {[%emt 0:00:00]} 58. a8=Q {[%emt 0:00:26]} Bxa8 {[%emt 0:00:00]} 59. Nxa8 {[%emt 0:00:05]} f4 {[%emt 0:00:03]} 60. e4 {[%emt 0:00:19]} f3 {[%emt 0:00:14]} 61. Nb6 {[%emt 0:00:22]} f2 {[%emt 0:10:21]} 62. Nc4+ Kf4 {[%emt 0:00:02]} 63. Nd2 {[%emt 0:00:01]} Ke5 {[%emt 0:00:10]} 64. Ke3 {[%emt 0:00:04]} Kf6 {[%emt 0:00:34]} 65. Kf4 1-0

[Event "Manhem Chess Week-Elo 2019"]
[Site "Moelnlycke"]
[Date "2019.08.11"]
[Round "2.6"]
[White "Jacobsson, Lennart"]
[Black "Ziegler, Nathalie"]
[Result "1-0"]
[ECO "B53"]
[WhiteElo "1754"]
[BlackElo "1846"]
[Annotator "NA"]
[PlyCount "91"]
[EventDate "2019.08.10"]
[EventType "tourn"]
[EventCountry "SWE"]
[SourceTitle "playchess.com"]
[Source "ChessBase"]
[SourceQuality "1"]
[TimeControl "40/5400+30:1800+30"]

1. e4 {[%emt 0:00:00]} c5 {[%emt 0:00:00]} 2. Nf3 {[%emt 0:00:19]} d6 {[%emt 0:00:07]} 3. d4 {[%emt 0:00:11]} cxd4 {[%emt 0:00:04]} 4. Qxd4 {[%emt 0:00:00]} Nc6 {[%emt 0:00:48]} 5. Qd3 {[%emt 0:00:19]} Nf6 {[%emt 0:03:17]} 6. c4 {[%emt 0:00:14]} Bg4 {[%emt 0:07:48]} 7. Be2 {[%emt 0:19:02]} Rc8 {[%emt 0:04:28]} 8. Bf4 {[%emt 0:01:28]} Qb6 {[%emt 0:06:51]} 9. Nc3 {[%emt 0:06:53]} g6 {[%emt 0:12:32]} 10. b3 {[%emt 0:08:37]} Bg7 {[%emt 0:03:30]} 11. Rc1 {[%emt 0:01:01]} O-O {[%emt 0:04:40]} 12. O-O {[%emt 0:06:06]} Qa5 {[%emt 0:10:55]} 13. Qd2 {[%emt 0:06:58]} Rfd8 {[%emt 0:12:27]} 14. Rfd1 {[%emt 0:07:01]} Nh5 {[%emt 0:01:58]} 15. Be3 {[%emt 0:03:24]} f5 {[%emt 0:07:41]} 16. h3 {[%emt 0:11:52]} Bxf3 {[%emt 0:01:33]} 17. Bxf3 {[%emt 0:03:13]} f4 {[%emt 0:05:26]} 18. Nd5 {[%emt 0:00:30]} Qxd2 {[%emt 0:00:30]} 19. Bxd2 {[%emt 0:00:06]} e5 {[%emt 0:02:51]} 20. Bg4 {[%emt 0:07:41]} Rb8 {[%emt 0:00:33]} 21. Bc3 {[%emt 0:00:40]} Nf6 {[%emt 0:00:52]} 22. Be6+ {[%emt 0:01:20]} Kf8 {[%emt 0:00:16]} 23. Nxf6 {[%emt 0:03:46]} Bxf6 {[%emt 0:00:02]} 24. Rd3 {[%emt 0:02:27]} h5 {[%emt 0:01:49]} 25. Kf1 {[%emt 0:01:44]} g5 {[%emt 0:04:58]} 26. Rcd1 {[%emt 0:00:21]} Ke7 {[%emt 0:01:17]} 27. Bf5 {[%emt 0:01:41]} b5 {[%emt 0:02:26]} 28. cxb5 {[%emt 0:01:08]} Rxb5 {[%emt 0:00:01]} 29. Bg6 {[%emt 0:00:52]} h4 {[%emt 0:00:18]} 30. Bh5 {[%emt 0:00:25]} Nb4 {[%emt 0:00:23]} 31. Bxb4 {[%emt 0:00:30]} Rxb4 {[%emt 0:00:01]} 32. Bf3 {[%emt 0:00:45]} Rb6 {[%emt 0:01:01]} 33. Rc1 {[%emt 0:00:53]} Ra6 {[%emt 0:00:53]} 34. Rd2 {[%emt 0:00:42]} Rd7 {[%emt 0:01:02]} 35. Bg4 {[%emt 0:01:21]} Rd8 {[%emt 0:00:24]} 36. Rc7+ {[%emt 0:01:01]} Kf8 {[%emt 0:00:29]} 37. Be2 {[%emt 0:02:08]} Ra5 {[%emt 0:00:29]} 38. Bc4 {[%emt 0:00:31]} Be7 {[%emt 0:00:15]} 39. a4 {[%emt 0:01:13]} Rb8 {[%emt 0:03:09]} 40. Bb5 {[%emt 0:00:34]} a6 {[%emt 0:00:30]} 41. Ra7 {[%emt 0:13:20]} Bd8 {[%emt 0:24:25]} 42. b4 {[%emt 0:01:58]} Raxb5 {[%emt 0:02:58]} 43. axb5 {[%emt 0:00:46]} Rxb5 44. Rxd6 {[%emt 0:01:57]} Be7 {[%emt 0:01:22]} 45. Rh6 {[%emt 0:08:12]} Rxb4 {[%emt 0:03:08]} 46. Rh8+ {[%emt 0:02:55] Rb6} 1-0

[Event "Manhem Chess Week-Elo 2019"]
[Site "Moelnlycke"]
[Date "2019.08.11"]
[Round "2.7"]
[White "Johansson, Eva"]
[Black "Bohlin, Jan"]
[Result "0-1"]
[ECO "E05"]
[WhiteElo "1869"]
[BlackElo "1724"]
[Annotator "NA"]
[PlyCount "62"]
[EventDate "2019.08.10"]
[EventType "tourn"]
[EventCountry "SWE"]
[SourceTitle "playchess.com"]
[Source "ChessBase"]
[SourceQuality "1"]
[TimeControl "40/5400+30:1800+30"]

1. d4 {[%emt 0:00:00]} Nf6 {[%emt 0:00:00]} 2. c4 {[%emt 0:00:00]} e6 {[%emt 0:00:00]} 3. Nf3 {[%emt 0:00:09]} d5 {[%emt 0:00:00]} 4. g3 {[%emt 0:00:07]} Be7 {[%emt 0:00:00]} 5. Bg2 {[%emt 0:00:11]} O-O {[%emt 0:00:00]} 6. O-O {[%emt 0:00:09]} dxc4 {[%emt 0:00:00]} 7. Ne5 {[%emt 0:02:25]} Nc6 {[%emt 0:00:00]} 8. Nxc6 {[%emt 0:03:29]} bxc6 {[%emt 0:00:27]} 9. Bxc6 {[%emt 0:01:08]} Rb8 {[%emt 0:00:08]} 10. Bg2 {[%emt 0:04:47]} Bb7 {[%emt 0:01:07]} 11. Nc3 {[%emt 0:01:58]} Bxg2 {[%emt 0:00:34]} 12. Kxg2 {[%emt 0:00:10]} c5 {[%emt 0:02:03]} 13. dxc5 {[%emt 0:04:39]} Bxc5 {[%emt 0:13:20]} 14. Qc2 {[%emt 0:05:58]} Qc8 {[%emt 0:14:13]} 15. h3 {[%emt 0:08:19]} Rd8 {[%emt 0:05:03]} 16. Kh2 {[%emt 0:02:17]} h6 {[%emt 0:15:20]} 17. Rb1 {[%emt 0:07:10]} Rb7 {[%emt 0:06:39]} 18. e4 {[%emt 0:07:16]} e5 {[%emt 0:05:03]} 19. Nd1 {[%emt 0:07:58]} Bd4 {[%emt 0:01:28]} 20. Ne3 {[%emt 0:00:59]} Rc7 {[%emt 0:01:53]} 21. Nf5 {[%emt 0:00:46]} Kh7 {[%emt 0:01:39]} 22. Qe2 {[%emt 0:02:58]} c3 {[%emt 0:04:34]} 23. bxc3 {[%emt 0:01:14]} Rxc3 {[%emt 0:01:01]} 24. a3 {[%emt 0:08:19]} Qc6 {[%emt 0:05:14]} 25. Nxd4 {[%emt 0:06:01]} Rxd4 {[%emt 0:01:48]} 26. Qb5 {[%emt 0:00:53]} Qxe4 {[%emt 0:05:52]} 27. Bb2 {[%emt 0:01:15]} Rd5 {[%emt 0:00:24]} 28. Qb7 {[%emt 0:00:59]} Rc2 {[%emt 0:02:01]} 29. Qxa7 {[%emt 0:02:45]} Rdd2 {[%emt 0:01:31]} 30. Ba1 {[%emt 0:05:07]} Qf3 {[%emt 0:01:37]} 31. Kg1 {[%emt 0:00:12]} Qxg3+ {[%emt 0:00:14]} 0-1

[Event "Manhem Chess Week-Elo 2019"]
[Site "Moelnlycke"]
[Date "2019.08.11"]
[Round "2.8"]
[White "Peterson, Rolf"]
[Black "Hattab, Hashim"]
[Result "0-1"]
[ECO "A48"]
[WhiteElo "1580"]
[BlackElo "1868"]
[Annotator "NA"]
[PlyCount "116"]
[EventDate "2019.08.10"]
[EventType "tourn"]
[EventCountry "SWE"]
[SourceTitle "playchess.com"]
[Source "ChessBase"]
[SourceQuality "1"]
[TimeControl "40/5400+30:1800+30"]

1. d4 {[%emt 0:00:00]} Nf6 {[%emt 0:00:29]} 2. Nf3 {[%emt 0:00:27]} g6 {[%emt 0:00:00]} 3. Bf4 {[%emt 0:01:42]} Bg7 {[%emt 0:00:30]} 4. e3 {[%emt 0:00:26]} Nh5 {[%emt 0:00:38]} 5. Bg3 {[%emt 0:04:56]} Nxg3 {[%emt 0:00:18]} 6. hxg3 {[%emt 0:00:13]} c5 {[%emt 0:00:27]} 7. c3 {[%emt 0:00:42]} Qb6 {[%emt 0:01:53]} 8. Qb3 {[%emt 0:04:00]} Qxb3 {[%emt 0:00:34]} 9. axb3 {[%emt 0:00:10]} cxd4 {[%emt 0:00:25]} 10. Nxd4 {[%emt 0:01:17]} a6 {[%emt 0:02:45]} 11. Nd2 {[%emt 0:03:49]} O-O {[%emt 0:01:45]} 12. Bd3 {[%emt 0:03:44]} d5 {[%emt 0:00:55]} 13. Nb5 {[%emt 0:00:41]} Nc6 {[%emt 0:03:50]} 14. Nc7 {[%emt 0:00:29]} Rb8 {[%emt 0:01:04]} 15. Nxd5 {[%emt 0:00:08]} Rd8 {[%emt 0:00:15]} 16. Be4 {[%emt 0:03:27]} f5 {[%emt 0:02:42]} 17. Bf3 {[%emt 0:00:24]} e5 {[%emt 0:02:08]} 18. Nb6 {[%emt 0:01:46]} Be6 {[%emt 0:01:38]} 19. Ndc4 {[%emt 0:00:57]} e4 {[%emt 0:00:59]} 20. Be2 {[%emt 0:00:26]} h6 {[%emt 0:05:57]} 21. O-O {[%emt 0:07:50]} Bf8 {[%emt 0:03:26]} 22. b4 {[%emt 0:03:22]} Be7 {[%emt 0:03:32]} 23. Rfd1 {[%emt 0:01:13]} Kg7 {[%emt 0:02:29]} 24. f4 {[%emt 0:04:00]} g5 {[%emt 0:01:37]} 25. Kf2 {[%emt 0:01:51]} g4 {[%emt 0:02:16]} 26. Rh1 {[%emt 0:03:06]} Rh8 {[%emt 0:03:34]} 27. Rad1 {[%emt 0:03:18]} h5 {[%emt 0:00:35]} 28. Nd7 {[%emt 0:08:30]} Rbc8 {[%emt 0:03:14]} 29. Ndb6 {[%emt 0:05:03]} Rcg8 {[%emt 0:02:22]} 30. Nd5 {[%emt 0:07:47]} Bd8 {[%emt 0:11:07]} 31. Nd6 {[%emt 0:06:21]} h4 {[%emt 0:01:55]} 32. gxh4 {[%emt 0:14:42]} g3+ {[%emt 0:12:02]} 33. Kg1 {[%emt 0:01:17]} Bxd5 {[%emt 0:06:39]} 34. Nxf5+ {[%emt 0:00:24]} Kf6 {[%emt 0:00:40]} 35. Rxd5 {[%emt 0:00:22]} Ne7 {[%emt 0:03:08]} 36. Nxe7 {[%emt 0:01:53]} Bxe7 {[%emt 0:00:18]} 37. h5 {[%emt 0:05:05]} Rd8 {[%emt 0:01:03]} 38. Bc4 {[%emt 0:00:48]} b5 {[%emt 0:00:17]} 39. Bb3 {[%emt 0:00:12]} Rxd5 {[%emt 0:00:14]} 40. Bxd5 {[%emt 0:01:38]} Rd8 {[%emt 0:03:39]} 41. Bb3 {[%emt 0:30:50]} Rd2 {[%emt 0:31:22]} 42. Kf1 {[%emt 0:00:00]} Rf2+ {[%emt 0:00:00]} 43. Ke1 {[%emt 0:00:00]} Rxg2 {[%emt 0:00:00]} 44. Bd1 {[%emt 0:00:00]} Kg7 {[%emt 0:00:00]} 45. Be2 {[%emt 0:00:00]} Kh6 {[%emt 0:00:00]} 46. Kd2 {[%emt 0:00:00]} Rf2 {[%emt 0:00:00]} 47. Rh3 {[%emt 0:00:00]} g2 {[%emt 0:00:00]} 48. Rg3 {[%emt 0:00:00]} Bh4 {[%emt 0:00:00]} 49. Rg6+ {[%emt 0:00:00]} Kh7 {[%emt 0:00:00]} 50. b3 {[%emt 0:00:00]} Kh8 {[%emt 0:00:00]} 51. c4 {[%emt 0:00:00]} bxc4 {[%emt 0:00:00]} 52. bxc4 {[%emt 0:00:00]} Be7 {[%emt 0:00:00]} 53. c5 {[%emt 0:00:00]} a5 {[%emt 0:00:00]} 54. bxa5 {[%emt 0:00:34]} Bxc5 {[%emt 0:00:00]} 55. a6 {[%emt 0:00:10]} Bb4+ {[%emt 0:00:00]} 56. Kd1 {[%emt 0:01:14]} Rf1+ {[%emt 0:00:00]} 57. Kc2 {[%emt 0:02:14]} g1=Q {[%emt 0:00:00]} 58. Bxf1 {[%emt 0:02:51]} Qxf1 {[%emt 0:00:00]} 0-1

[Event "Manhem Chess Week-Elo 2019"]
[Site "Moelnlycke"]
[Date "2019.08.12"]
[Round "3.1"]
[White "Olsson, William"]
[Black "Bengtsson, Jonas"]
[Result "0-1"]
[ECO "A47"]
[WhiteElo "2113"]
[BlackElo "2145"]
[Annotator "RC"]
[PlyCount "100"]
[EventDate "2019.08.10"]
[EventType "tourn"]
[EventCountry "SWE"]
[SourceTitle "playchess.com"]
[Source "ChessBase"]
[SourceQuality "1"]
[TimeControl "40/5400+30:1800+30"]

1. d4 {[%emt 0:00:00]} Nf6 {[%emt 0:00:00]} 2. Nf3 {[%emt 0:00:00]} e6 {[%emt 0:00:05]} 3. Bf4 {[%emt 0:00:09]} c5 {[%emt 0:00:00]} 4. e3 {[%emt 0:00:00]} b6 {[%emt 0:00:09]} 5. c3 {[%emt 0:00:45]} Bb7 {[%emt 0:00:07]} 6. Nbd2 {[%emt 0:00:06]} Be7 {[%emt 0:00:06]} 7. Bd3 {[%emt 0:00:08]} Nh5 {[%emt 0:00:47]} 8. Bg3 {[%emt 0:00:12]} Nc6 {[%emt 0:00:19]} 9. Qe2 {[%emt 0:01:12]} h6 {[%emt 0:12:33]} 10. a3 {[%emt 0:01:31]} Nxg3 {[%emt 0:03:29]} 11. hxg3 {[%emt 0:01:03]} d5 {[%emt 0:01:22]} 12. Bb5 {[%emt 0:04:28]} Bf6 {[%emt 0:13:01]} 13. Nf1 {[%emt 0:09:30]} a6 {[%emt 0:05:12]} 14. Bxc6+ {[%emt 0:01:15]} Bxc6 {[%emt 0:00:07]} 15. N1h2 {[%emt 0:00:06]} g6 {[%emt 0:03:15]} 16. Ng4 {[%emt 0:00:13]} Bg7 {[%emt 0:00:09]} 17. Nge5 {[%emt 0:04:36]} Qc7 {[%emt 0:04:29]} 18. Qc2 {[%emt 0:04:02]} Bb7 {[%emt 0:04:01]} 19. g4 {[%emt 0:05:08]} O-O-O {[%emt 0:11:16]} 20. Kd2 {[%emt 0:02:27]} g5 {[%emt 0:01:10]} 21. Nd3 {[%emt 0:07:59]} Kb8 {[%emt 0:02:12]} 22. a4 {[%emt 0:09:44]} f5 {[%emt 0:00:39]} 23. Nde5 {[%emt 0:00:00]} fxg4 {[%emt 0:11:19]} 24. Nxg4 {[%emt 0:00:00]} h5 25. Nge5 {[%emt 0:00:48]} g4 {[%emt 0:01:14]} 26. Ng5 {[%emt 0:00:00]} Rde8 27. Nef7 {[%emt 0:08:47]} Rhg8 {[%emt 0:00:33]} 28. Rxh5 {[%emt 0:00:00]} Bf6 {[%emt 0:10:56]} 29. Qh7 {[%emt 0:03:59]} Rg7 {[%emt 0:01:37]} 30. Qh6 {[%emt 0:03:31]} Rxf7 {[%emt 0:04:28]} 31. Nxf7 {[%emt 0:00:00]} Qxf7 {[%emt 0:00:03]} 32. Qf4+ {[%emt 0:00:00]} Ka7 {[%emt 0:00:22]} 33. Rg5 Qe7 {[%emt 0:00:32]} 34. Rxg4 {[%emt 0:00:00]} e5 {[%emt 0:03:08]} 35. dxe5 {[%emt 0:00:00]} Bxe5 {[%emt 0:00:00]} 36. Qg5 {[%emt 0:04:04]} Bf6 {[%emt 0:00:00]} 37. Qg6 {[%emt 0:00:09]} d4 {[%emt 0:00:00]} 38. Re1 {[%emt 0:07:08]} dxc3+ {[%emt 0:00:00]} 39. bxc3 {[%emt 0:00:09]} Rd8+ {[%emt 0:03:47]} 40. Ke2 {[%emt 0:01:30]} Qd7 {[%emt 0:04:17]} 41. Kf1 {[%emt 0:31:59]} Bxc3 {[%emt 0:06:58]} 42. Rb1 {[%emt 0:00:00]} Ba5 {[%emt 0:00:55]} 43. Rh4 {[%emt 0:00:00]} Qd5 {[%emt 0:02:28]} 44. Rg4 {[%emt 0:00:00]} c4 {[%emt 0:00:49]} 45. Qc2 {[%emt 0:00:00]} c3 {[%emt 0:01:36]} 46. f3 {[%emt 0:00:00]} Qc5 {[%emt 0:01:53]} 47. Rg7 {[%emt 0:00:00]} Rd2 {[%emt 0:03:51]} 48. Qe4 {[%emt 0:00:00]} Qd5 {[%emt 0:00:27]} 49. Qxd5 {[%emt 0:00:00]} Rxd5 {[%emt 0:00:08]} 50. Rc7 {[%emt 0:00:00]} b5 {[%emt 0:00:20]} 0-1

[Event "Manhem Chess Week-Elo 2019"]
[Site "Moelnlycke"]
[Date "2019.08.12"]
[Round "3.2"]
[White "Bergenwall, Henric"]
[Black "Fransson, Lennart"]
[Result "0-1"]
[ECO "B05"]
[WhiteElo "1933"]
[BlackElo "2014"]
[Annotator "NA RC"]
[PlyCount "100"]
[EventDate "2019.08.10"]
[EventType "tourn"]
[EventCountry "SWE"]
[SourceTitle "playchess.com"]
[Source "ChessBase"]
[SourceQuality "1"]
[TimeControl "40/5400+30:1800+30"]

1. e4 {[%emt 0:00:00]} Nf6 {[%emt 0:00:00]} 2. e5 {[%emt 0:00:04]} Nd5 {[%emt 0:00:08]} 3. d4 {[%emt 0:01:36]} d6 {[%emt 0:00:14]} 4. Nf3 {[%emt 0:03:00]} Bg4 {[%emt 0:00:12]} 5. Be2 {[%emt 0:09:37]} e6 {[%emt 0:02:24]} 6. O-O {[%emt 0:06:49]} Be7 {[%emt 0:01:47]} 7. c4 {[%emt 0:05:36]} Nb6 {[%emt 0:00:08]} 8. b3 {[%emt 0:08:17]} Nc6 {[%emt 0:07:12] B05: Alekhine's Defence: 4 Nf3 Bg4} 9. Bb2 {[%emt 0:01:10]} O-O {[%emt 0:01:05]} 10. Nbd2 {[%emt 0:09:20]} ({Better is} 10. exd6 $11 cxd6 11. h3 (11. Nbd2 d5 12. c5 Nd7 13. Re1 b6 14. Bb5 Qc7 15. Bxc6 Qxc6 16. b4 a5 17. a3 Bf6 18. Qc1 Rfc8 19. Re3 Qa4 {0-1 (66) Mishra,A (2166)-Mulyar,M (2374) Sturbridge 2018})) 10... Qe8 $146 {[%emt 0:06:16]} ({Predecessor:} 10... dxe5 11. dxe5 Re8 12. Ne4 Qxd1 13. Rfxd1 Rad8 14. h3 Bf5 {½-½ (59) Havalda,S (1504)-Vargosko,J (1562) Liptovsky Mikulas 2019}) 11. exd6 {[%emt 0:11:09]} cxd6 {[%emt 0:00:13]} 12. Re1 {[%emt 0:01:51]} d5 {[%emt 0:12:42]} 13. Ne5 {[%emt 0:05:21]} (13. Bc3 $14) 13... Nxe5 {[%emt 0:03:41]} 14. dxe5 {[%emt 0:00:19]} Bxe2 {[%emt 0:05:04]} 15. Qxe2 {[%emt 0:01:29]} dxc4 {[%emt 0:01:57]} 16. Nxc4 {[%emt 0:00:46]} Nd5 {[%emt 0:04:03]} 17. Ne3 {[%emt 0:06:28]} Nxe3 {[%emt 0:10:52]} 18. Qxe3 {[%emt 0:01:04]} b6 {[%emt 0:05:34]} 19. Qe2 {[%emt 0:02:15]} Bc5 {[%emt 0:02:21]} 20. Rac1 {[%emt 0:01:42]} Qe7 {[%emt 0:01:45]} 21. Red1 {[%emt 0:04:58]} Rfd8 {[%emt 0:02:15]} 22. Rxd8+ {[%emt 0:01:45]} Rxd8 $11 {[%emt 0:00:02]} 23. Rd1 {[%emt 0:00:03]} Rd5 {[%emt 0:01:17]} 24. Rxd5 {[%emt 0:03:14]} exd5 {[%emt 0:00:26]} 25. Qg4 {[%emt 0:01:00]} Qe6 {[%emt 0:03:58]} 26. Qxe6 {[%emt 0:05:23]} fxe6 {[%emt 0:00:04]} 27. Kf1 {[%emt 0:00:31]} Kf7 {[%emt 0:01:09]} 28. Ke2 {[%emt 0:01:59]} Kg6 {[%emt 0:01:58]} 29. f4 {[%emt 0:00:05]} Kf5 {[%emt 0:02:12]} 30. Kf3 {[%emt 0:00:05]} h5 {[%emt 0:00:21]} 31. h3 {[%emt 0:00:45]} h4 {[%emt 0:01:06]} 32. Bc3 {[%emt 0:03:37]} b5 {[%emt 0:01:22]} 33. Be1 {[%emt 0:01:56]} g5 {[%emt 0:00:28]} 34. b4 {[%emt 0:01:15]} Bb6 {[%emt 0:00:27]} 35. g4+ {[%emt 0:01:21]} hxg3 {[%emt 0:00:15]} 36. fxg5 {[%emt 0:01:05]} g2 {[%emt 0:02:11]} 37. Kxg2 {[%emt 0:00:07]} Kxg5 {[%emt 0:00:20]} 38. Kf3 {[%emt 0:00:41]} Bd4 {[%emt 0:00:36]} 39. h4+ {[%emt 0:00:31]} Kf5 {[%emt 0:00:25]} 40. h5 {[%emt 0:00:21]} Bxe5 {[%emt 0:00:27]} 41. Bd2 {[%emt 0:30:24]} Bf6 {[%emt 0:31:37]} 42. h6 {[%emt 0:01:29]} e5 {[%emt 0:01:55]} 43. h7 {[%emt 0:00:00]} e4+ {[%emt 0:00:00]} 44. Kg3 {[%emt 0:00:00]} d4 {[%emt 0:00:00]} 45. Bf4 {[%emt 0:00:00]} Bg7 {[%emt 0:00:00]} 46. Bb8 {[%emt 0:00:00]} a6 {[%emt 0:00:00]} 47. Ba7 {[%emt 0:00:00]} Be5+ {[%emt 0:00:00]} 48. Kh4 {[%emt 0:00:00]} e3 {[%emt 0:00:00]} 49. Bb8 {[%emt 0:00:00]} Bf6+ {[%emt 0:00:00]} 50. Kg3 {[%emt 0:00:00]} Ke4 {[%emt 0:00:00]} 0-1

[Event "Manhem Chess Week-Elo 2019"]
[Site "Moelnlycke"]
[Date "2019.08.12"]
[Round "3.3"]
[White "Bergre, Joachim"]
[Black "Moller, Mikael"]
[Result "0-1"]
[ECO "A37"]
[WhiteElo "1928"]
[BlackElo "1957"]
[Annotator "NA RC"]
[PlyCount "74"]
[EventDate "2019.08.10"]
[EventType "tourn"]
[EventCountry "SWE"]
[SourceTitle "playchess.com"]
[Source "ChessBase"]
[SourceQuality "1"]
[TimeControl "40/5400+30:1800+30"]

1. Nf3 {[%emt 0:00:00]} c5 {[%emt 0:00:00]} 2. c4 {[%emt 0:00:03]} Nc6 {[%emt 0:00:10]} 3. g3 {[%emt 0:00:30]} g6 {[%emt 0:00:30]} 4. Bg2 {[%emt 0:00:30]} Bg7 {[%emt 0:00:30]} 5. O-O {[%emt 0:00:30]} d6 {[%emt 0:00:30]} 6. Nc3 {[%emt 0:00:30]} Bd7 {[%emt 0:00:30]} 7. b3 {[%emt 0:00:30]} a6 {[%emt 0:00:30]} 8. Bb2 {[%emt 0:00:30]} b5 {[%emt 0:00:30]} 9. d3 {[%emt 0:00:30]} Rb8 {[%emt 0:00:30]} 10. Qc1 {[%emt 0:00:30]} Nf6 {[%emt 0:00:30]} 11. Ne4 {[%emt 0:00:30]} Nh5 {[%emt 0:00:30]} 12. Bxg7 {[%emt 0:00:30]} Nxg7 {[%emt 0:00:30]} 13. Nh4 {[%emt 0:00:30]} Nd4 {[%emt 0:00:30]} 14. Re1 {[%emt 0:00:30]} O-O {[%emt 0:00:30]} 15. e3 {[%emt 0:42:25]} Ndf5 {[%emt 0:19:36]} 16. Nf3 {[%emt 0:00:52]} Bc6 {[%emt 0:04:40]} 17. Nc3 {[%emt 0:06:11]} b4 {[%emt 0:03:26]} 18. Ne2 {[%emt 0:01:14]} e5 {[%emt 0:02:00]} 19. e4 {[%emt 0:06:35]} Nd4 {[%emt 0:01:14]} 20. Nexd4 {[%emt 0:03:16]} cxd4 {[%emt 0:01:05]} 21. Qh6 {[%emt 0:01:32]} f6 {[%emt 0:05:29]} 22. h4 {[%emt 0:00:44]} Bd7 {[%emt 0:03:19]} 23. Rac1 {[%emt 0:01:39]} Ne6 {[%emt 0:07:45]} 24. Bf1 {[%emt 0:01:56]} Nc5 {[%emt 0:02:22]} 25. Nd2 {[%emt 0:00:49]} a5 {[%emt 0:03:39]} 26. f4 {[%emt 0:00:48]} Ra8 {[%emt 0:00:20]} 27. Be2 {[%emt 0:11:29]} Qe7 {[%emt 0:00:00]} 28. Kg2 $19 {[%emt 0:00:51]} a4 {[%emt 0:03:23]} 29. h5 {[%emt 0:00:51]} g5 {[%emt 0:00:30]} 30. fxg5 {[%emt 0:00:28]} fxg5 {[%emt 0:00:06]} 31. Rf1 {[%emt 0:00:06]} axb3 {[%emt 0:09:58]} 32. Rxf8+ {[%emt 0:00:48]} Rxf8 {[%emt 0:00:10]} 33. axb3 {[%emt 0:10:12]} Ne6 {[%emt 0:02:13]} 34. Rf1 {[%emt 0:00:00]} Rxf1 {[%emt 0:08:34]} 35. Bxf1 {[%emt 0:00:00]} Nd8 {[%emt 0:00:27]} 36. c5 {[%emt 0:00:00]} Nf7 {[%emt 0:01:23]} 37. cxd6 {[%emt 0:00:00]} Qd8 {[%emt 0:00:30]} 0-1